bitfinex/quotes_SOLUSD_20250718
["timestamp","ask_amount","ask_price","bid_price","bid_amount"]
[1752849082113,0.69,178.41,178.37,9.63009255]
[1752849082313,0.69,178.41,178.38,9.63009255]
[1752849082509,16.84468397,178.42,178.35,39.73691038]
[1752849082510,16.84468397,178.42,178.39,9.63009255]
[1752849082730,0.06,178.42,178.41,9.63009255]
[1752849082936,0.06,178.42,178.4,9.63009255]
[1752849083311,0.06,178.42,178.38,34.1]
[1752849083713,0.06,178.42,178.41,35.63009255]
[1752849083917,0.06,178.42,178.41,69.73009255]
[1752849084111,0.06,178.42,178.41,70.45009255]
[1752849084345,0.06,178.42,178.41,76.05515953]
[1752849084513,0.06,178.42,178.4,34.1]
[1752849084720,0.69,178.41,178.4,35.63009255]
[1752849084940,0.69,178.41,178.4,26.0]
[1752849085127,0.06,178.42,178.4,35.63009255]
[1752849085443,0.06,178.42,178.41,9.63009255]
[1752849086018,0.06,178.42,178.39,26.0]
[1752849086216,0.06,178.42,178.41,9.63009255]
[1752849087136,0.06,178.42,178.41,15.23515953]
[1752849087315,0.06,178.42,178.41,9.63009255]
[1752849087520,0.75,178.42,178.41,9.63009255]
[1752849087711,0.06,178.42,178.41,9.63009255]
[1752849087912,16.78468397,178.41,178.34,0.72]
[1752849088123,17.47468397,178.41,178.38,9.63009255]
[1752849088332,0.69,178.41,178.4,9.63009255]
[1752849088810,0.69,178.41,178.35,39.69672802]
[1752849088811,6.29511276,178.41,178.35,39.69672802]
[1752849089031,6.29511276,178.41,178.37,9.63009255]
[1752849089236,6.29511276,178.41,178.35,65.69672802]
[1752849089237,0.69,178.41,178.39,9.63009255]
[1752849089619,0.69,178.41,178.4,9.63009255]
[1752849089943,0.69,178.41,178.35,65.69672802]
[1752849089944,16.78468397,178.4,178.35,5.63691153]
[1752849090114,0.69,178.39,178.36,9.63009255]
[1752849090309,0.69,178.39,178.37,9.63009255]
[1752849090541,0.69,178.39,178.38,9.63009255]
[1752849091038,0.69,178.39,178.37,9.63009255]
[1752849092251,0.69,178.39,178.35,5.63694533]
[1752849092461,0.69,178.38,178.35,0.03]
[1752849092620,32.02110045,178.37,178.35,0.03]
[1752849092831,26.41477652,178.36,178.35,0.03]
[1752849093046,27.10477652,178.36,178.35,0.03]
[1752849093230,17.47468397,178.36,178.35,0.03]
[1752849093947,27.10477652,178.36,178.35,0.03]
[1752849094671,32.71141477,178.36,178.35,0.03]
[1752849094953,23.08132222,178.36,178.35,0.03]
[1752849095151,32.71141477,178.36,178.35,0.03]
[1752849096354,23.08132222,178.36,178.35,0.03]
[1752849096550,32.71141477,178.36,178.35,1e-08]
[1752849096760,32.71141477,178.36,178.31,0.03]
[1752849096761,16.78468397,178.35,178.31,0.03]
[1752849096993,26.41477652,178.32,178.31,0.03]
[1752849097550,26.41477652,178.32,178.27,0.03]
[1752849097551,16.78468397,178.31,178.27,0.03]
[1752849097727,9.63009255,178.3,178.27,0.03]
[1752849097931,10.32009255,178.3,178.27,0.03]
[1752849098141,16.78468397,178.28,178.27,0.03]
[1752849098346,26.41477652,178.28,178.27,0.03]
[1752849098552,29.89824026,178.28,178.27,0.03]
[1752849098723,35.50739439,178.28,178.27,1e-08]
[1752849099523,59.87730184,178.28,178.27,1e-08]
[1752849099831,69.50739439,178.28,178.27,1e-08]
[1752849100628,83.53027973,178.28,178.19,0.03]
[1752849100837,16.78468397,178.21,178.19,0.03]
[1752849101280,17.47468397,178.21,178.19,0.03]
[1752849101576,33.98,178.22,178.2,9.63009255]
[1752849101749,16.78468397,178.24,178.19,0.03]
[1752849102059,16.78468397,178.24,178.21,9.63009255]
[1752849102260,0.69,178.25,178.23,9.63009255]
[1752849102469,50.76468397,178.29,178.24,9.63009255]
[1752849102636,50.76468397,178.29,178.23,0.72]
[1752849102837,56.37362805,178.29,178.23,0.72]
[1752849103034,26.41477652,178.26,178.21,9.63009255]
[1752849103464,16.78468397,178.24,178.21,9.63009255]
[1752849103636,16.78468397,178.24,178.19,0.03]
[1752849103834,16.78468397,178.22,178.19,0.03]
[1752849104252,16.78468397,178.22,178.2,9.63009255]
[1752849104640,16.78468397,178.22,178.19,0.03]
[1752849104846,16.78468397,178.2,178.19,0.03]
[1752849105046,26.41477652,178.2,178.19,0.03]
[1752849105350,27.10477652,178.2,178.19,0.03]
[1752849105730,27.10477652,178.2,178.17,0.2]
[1752849105731,27.10477652,178.2,178.17,1e-08]
[1752849105937,16.78468397,178.17,178.09,0.2]
[1752849106151,16.78468397,178.12,178.09,0.2]
[1752849106340,73.69653777,178.21,178.09,0.2]
[1752849106341,16.78468397,178.1,178.09,0.2]
[1752849106749,17.47468397,178.1,178.09,0.2]
[1752849107068,27.10477652,178.1,178.09,0.2]
[1752849107246,32.71959965,178.1,178.09,0.2]
[1752849107763,23.0895071,178.1,178.09,0.2]
[1752849107944,32.71959965,178.1,178.09,0.2]
[1752849108755,56.38675003,178.1,178.04,0.03]
[1752849109059,26.41477652,178.05,178.04,0.03]
[1752849109258,50.74468397,178.05,178.04,0.03]
[1752849109463,51.43468397,178.05,178.04,0.03]
[1752849109848,50.72468397,178.05,178.04,9.66009255]
[1752849110059,50.72468397,178.05,178.04,0.03]
[1752849110649,0.69,178.09,178.04,0.03]
[1752849110944,20.8952,178.13,178.04,0.03]
[1752849110945,16.78468397,178.07,178.04,0.03]
[1752849111360,9.63009255,178.1,178.05,9.63009255]
[1752849111669,16.78468397,178.08,178.06,9.63009255]
[1752849111873,33.94,178.09,178.07,9.63009255]
[1752849112050,16.78468397,178.11,178.07,9.63009255]
[1752849112247,10.32009255,178.1,178.04,35.66009255]
[1752849112468,0.69,178.1,178.04,35.66009255]
[1752849112656,9.63009255,178.09,178.04,35.66009255]
[1752849112852,17.47468397,178.08,178.04,0.03]
[1752849113063,27.10477652,178.08,178.04,0.03]
[1752849113246,17.47468397,178.08,178.04,9.66009255]
[1752849113452,16.78468397,178.08,178.04,9.66009255]
[1752849114063,16.78468397,178.06,178.04,0.03]
[1752849114594,17.47468397,178.06,178.04,0.03]
[1752849114786,6.30639988,178.05,178.04,0.03]
[1752849114946,58.7211764,178.05,178.04,0.03]
[1752849115147,32.7211764,178.05,178.04,0.03]
[1752849115566,49.09108385,178.05,178.04,0.03]
[1752849115750,58.7211764,178.05,178.04,0.03]
[1752849116077,82.32108385,178.05,178.04,0.03]
[1752849116260,42.78468397,178.03,178.02,0.03]
[1752849116452,42.78468397,178.03,178.0,0.03]
[1752849116453,16.78468397,178.01,178.0,0.03]
[1752849116771,5.61829316,177.99,177.98,0.03]
[1752849116977,5.61829316,177.99,177.87,0.71]
[1752849116978,16.78468397,177.98,177.87,0.71]
[1752849117180,16.78468397,177.98,177.85,7.778]
[1752849117181,16.78468397,177.92,177.88,9.63009255]
[1752849117371,16.78468397,177.92,177.85,7.778]
[1752849117681,26.41477652,177.88,177.8,8.5654]
[1752849117982,26.41477652,177.86,177.81,9.63009255]
[1752849118187,16.78468397,177.84,177.77,6.33522409]
[1752849118352,16.78468397,177.82,177.76,5.62556255]
[1752849118549,16.78468397,177.82,177.75,7.8554]
[1752849118550,26.41477652,177.82,177.75,7.8554]
[1752849118750,17.47468397,177.83,177.77,9.63009255]
[1752849118960,27.10477652,177.83,177.76,5.62556062]
[1752849119157,16.78468397,177.81,177.76,6.33556062]
[1752849119368,33.9,177.82,177.77,0.71]
[1752849119755,26.41477652,177.86,177.78,0.71]
[1752849119955,16.78468397,177.81,177.74,13.6558]
[1752849120157,16.78468397,177.79,177.71,14.06786337]
[1752849120374,16.78468397,177.8,177.72,0.71]
[1752849120572,33.92,177.79,177.74,9.63009255]
[1752849120778,16.78468397,177.77,177.7,13.46762322]
[1752849120974,16.78468397,177.81,177.76,9.69986646]
[1752849121187,16.78468397,177.81,177.77,0.71]
[1752849121485,16.78468397,177.83,177.78,0.71]
[1752849121992,10.38986646,177.82,177.74,0.71]
[1752849122157,16.78468397,177.78,177.74,14.63501319]
[1752849122358,16.78468397,177.78,177.77,14.63501319]
[1752849122579,16.78468397,177.83,177.77,15.34501319]
[1752849122789,16.78468397,177.83,177.78,0.71]
[1752849122962,16.78468397,177.86,177.82,14.63501319]
[1752849123153,31.41969716,177.86,177.76,26.0]
[1752849123363,16.78468397,177.84,177.81,14.63501319]
[1752849123663,31.41969716,177.82,177.73,26.0]
[1752849123876,16.78468397,177.78,177.74,14.63501319]
[1752849124166,16.78468397,177.78,177.75,0.71]
[1752849124388,5.62223079,177.87,177.77,14.63501319]
[1752849124594,50.68468397,177.86,177.83,14.63501319]
[1752849124904,51.37468397,177.86,177.81,5.62375698]
[1752849125182,0.69,177.9,177.82,0.71]
[1752849125387,16.78468397,177.89,177.81,5.62375698]
[1752849125578,16.78468397,177.89,177.79,0.71]
[1752849125579,31.41969716,177.87,177.79,0.71]
[1752849125896,31.41969716,177.87,177.78,26.0]
[1752849125897,16.78468397,177.84,177.78,26.0]
[1752849126068,16.78468397,177.84,177.81,14.63501319]
[1752849126274,16.78468397,177.84,177.78,26.0]
[1752849126275,12.5244,177.92,177.83,14.63501319]
[1752849126469,34.59,177.92,177.82,0.71]
[1752849126770,17.47468397,177.91,177.82,26.0]
[1752849126978,16.78468397,177.9,177.87,14.63501319]
[1752849127161,16.78468397,177.88,177.86,14.63501319]
[1752849127490,0.69,177.87,177.79,12.6803]
[1752849127668,16.78468397,177.86,177.82,14.63501319]
[1752849127866,16.78468397,177.87,177.84,14.63501319]
[1752849128072,0.69,177.86,177.75,0.71]
[1752849128374,16.78468397,177.82,177.73,18.47511212]
[1752849128569,16.78468397,177.78,177.71,5.62714534]
[1752849128762,0.69,177.77,177.7,5.62745615]
[1752849128981,31.41969716,177.76,177.66,0.71]
[1752849129187,16.78468397,177.74,177.7,14.63501319]
[1752849129358,16.78468397,177.74,177.67,5.6283706]
[1752849129562,0.69,177.73,177.69,14.63501319]
[1752849129762,16.78468397,177.72,177.65,5.62898073]
[1752849129963,0.69,177.72,177.64,13.90449385]
[1752849130178,16.78468397,177.71,177.64,13.90449385]
[1752849130571,0.69,177.7,177.59,14.07716856]
[1752849130775,16.78468397,177.69,177.52,0.5633168]
[1752849131095,16.78468397,177.69,177.5,13.2071]
[1752849131096,5.62936835,177.64,177.53,0.20618387]
[1752849131268,5.62936835,177.64,177.5,5.63350998]
[1752849131269,16.78468397,177.6,177.5,5.63350998]
[1752849131590,0.69,177.59,177.5,5.63350998]
[1752849131776,0.69,177.59,177.48,6.3441705]
[1752849131977,50.66468397,177.58,177.48,32.3441705]
[1752849132287,16.78468397,177.61,177.57,14.63501319]
[1752849132470,31.41969716,177.61,177.53,0.71]
[1752849132790,16.78468397,177.61,177.53,0.71]
[1752849132993,20.26538068,177.61,177.53,0.71]
[1752849133192,16.78468397,177.6,177.51,5.63323141]
[1752849133396,17.47468397,177.6,177.51,5.63323141]
[1752849133780,0.69,177.59,177.51,5.63323141]
[1752849133984,15.32501319,177.59,177.48,5.63443768]
[1752849134291,16.78468397,177.57,177.48,6.34443768]
[1752849134527,16.78468397,177.55,177.48,5.63443768]
[1752849134991,5.63285078,177.53,177.45,5.63519937]
[1752849135194,0.69,177.54,177.49,14.63501319]
[1752849135371,17.47468397,177.53,177.46,14.63501319]
[1752849135571,16.78468397,177.51,177.43,26.0]
[1752849135771,16.78468397,177.51,177.41,26.0]
[1752849135772,16.78468397,177.51,177.41,6.30666084]
[1752849136009,31.41969716,177.51,177.41,6.30666084]
[1752849136182,0.66,177.51,177.48,0.03]
[1752849136383,40.71257524,177.54,177.48,0.03]
[1752849136384,16.78468397,177.49,177.48,0.03]
[1752849136688,52.02468397,177.49,177.48,0.03]
[1752849136890,16.78468397,177.49,177.48,0.03]
[1752849137091,16.78468397,177.53,177.48,0.03]
[1752849137291,36.1,177.54,177.48,0.03]
[1752849137606,0.66,177.52,177.48,0.03]
[1752849137995,17.44468397,177.51,177.48,0.03]
[1752849138195,0.66,177.55,177.48,0.7]
[1752849138399,16.78468397,177.54,177.52,14.63501319]
[1752849138716,35.66,177.6,177.48,0.03]
[1752849139021,35.66,177.6,177.53,0.67]
[1752849139183,35.66,177.6,177.48,26.03]
[1752849139184,0.66,177.59,177.49,0.67]
[1752849139384,0.66,177.59,177.49,5.63412023]
[1752849139385,16.78468397,177.58,177.49,5.63412023]
[1752849139608,16.78468397,177.56,177.48,0.03]
[1752849139811,16.78468397,177.54,177.48,0.03]
[1752849141511,14.63501319,177.49,177.48,0.03]
[1752849141688,16.78468397,177.5,177.48,0.03]
[1752849141882,0.66,177.49,177.48,0.03]
[1752849143204,15.29501319,177.49,177.48,0.03]
[1752849143814,0.66,177.49,177.48,0.03]
[1752849144023,15.29501319,177.49,177.48,0.03]
[1752849144189,0.66,177.49,177.48,0.03]
[1752849144588,56.40468397,177.49,177.48,0.03]
[1752849145315,71.03969716,177.49,177.48,0.03]
[1752849145498,56.40468397,177.49,177.48,0.03]
[1752849145685,71.03969716,177.49,177.48,0.03]
[1752849145901,56.40468397,177.49,177.48,0.03]
[1752849146129,56.40468397,177.49,177.36,10.62418703]
[1752849146130,22.41912165,177.48,177.36,10.62418703]
[1752849146300,16.78468397,177.41,177.36,10.62418703]
[1752849146505,16.78468397,177.39,177.36,10.62418703]
[1752849146799,17.44468397,177.39,177.36,10.62418703]
[1752849147005,16.78468397,177.37,177.36,10.62418703]
[1752849147206,23.08261597,177.37,177.36,10.62418703]
[1752849147635,37.71762916,177.37,177.36,10.62418703]
[1752849147799,23.08261597,177.37,177.36,10.62418703]
[1752849148000,37.71762916,177.37,177.36,10.62418703]
[1752849148432,23.08261597,177.37,177.36,10.62418703]
[1752849148607,37.17744598,177.37,177.29,0.11264324]
[1752849148809,37.17744598,177.37,177.14,8.07952523]
[1752849148810,16.78468397,177.29,177.26,11.58099174]
[1752849149021,26.0,177.21,177.09,5.64684623]
[1752849149225,26.0,177.17,177.0,3.93079231]
[1752849149556,26.0,177.17,177.01,0.20678851]
[1752849149557,10.0,177.08,177.01,0.20678851]
[1752849149829,6.28367363,177.17,177.0,3.93079231]
[1752849149830,40.7047484,177.07,177.0,3.93079231]
[1752849150027,16.78468397,177.05,177.0,2.43079231]
[1752849150203,16.78468397,177.03,176.96,0.67]
[1752849150400,0.5647484,177.02,176.96,0.67]
[1752849150720,16.78468397,177.07,176.96,0.67]
[1752849150918,8.10522082,177.14,176.96,0.67]
[1752849150919,16.78468397,177.05,176.96,0.67]
[1752849151134,0.5647484,177.13,177.04,14.63501319]
[1752849151430,16.78468397,177.12,177.05,0.67]
[1752849151602,16.78468397,177.1,177.05,0.67]
[1752849151809,40.24,177.15,177.05,0.67]
[1752849152005,16.78468397,177.13,177.05,0.67]
[1752849152229,0.5647484,177.12,177.05,0.67]
[1752849152414,57.18468397,177.18,177.05,0.67]
[1752849152610,16.78468397,177.16,177.05,0.67]
[1752849152836,0.5647484,177.15,177.05,0.67]
[1752849153133,16.78468397,177.14,177.06,5.647803]
[1752849153341,16.78468397,177.14,177.07,0.67]
[1752849153342,0.5647484,177.13,177.07,0.67]
[1752849153525,0.5647484,177.13,177.05,6.31804503]
[1752849153526,16.78468397,177.12,177.05,6.31804503]
[1752849153731,0.5647484,177.11,177.05,6.31804503]
[1752849153937,16.78468397,177.16,177.09,14.63501319]
[1752849154136,16.78468397,177.14,177.08,26.0]
[1752849154338,0.5647484,177.15,177.1,0.67]
[1752849154651,0.5647484,177.15,177.14,14.63501319]
[1752849154952,25.42505568,177.2,177.14,15.30501319]
[1752849155112,9.10613188,177.34,177.2,5.64334085]
[1752849155113,0.5647484,177.31,177.2,5.64334085]
[1752849155452,6.20472577,177.31,177.21,0.67]
[1752849155611,6.20472577,177.31,177.16,0.67]
[1752849155934,14.63501319,177.23,177.18,14.63501319]
[1752849156146,0.5647484,177.22,177.2,14.63501319]
[1752849156353,0.5647484,177.25,177.21,0.67]
[1752849156646,0.5647484,177.25,177.18,26.0]
[1752849156943,5.63997737,177.31,177.18,26.0]
[1752849156944,0.5647484,177.3,177.24,14.63501319]
[1752849157124,0.5647484,177.3,177.28,14.63501319]
[1752849157445,0.5647484,177.35,177.29,0.67]
[1752849157629,0.5647484,177.35,177.31,14.63501319]
[1752849157941,0.5647484,177.35,177.25,0.67]
[1752849158237,0.5647484,177.35,177.26,14.63501319]
[1752849158412,14.63501319,177.31,177.25,15.30501319]
[1752849158606,50.15907205,177.36,177.25,0.67]
[1752849158607,0.5647484,177.3,177.25,0.67]
[1752849158831,0.5647484,177.35,177.26,15.30501319]
[1752849159034,0.5647484,177.35,177.22,31.64256446]
[1752849159035,0.5647484,177.35,177.3,14.63501319]
[1752849159215,0.5647484,177.35,177.28,5.64079422]
[1752849159426,0.5647484,177.35,177.29,0.67]
[1752849159730,3.84072422,177.36,177.31,26.0]
[1752849159948,24.69911654,177.48,177.32,0.67]
[1752849159949,0.5647484,177.35,177.32,0.67]
[1752849160119,14.63501319,177.36,177.27,31.64087355]
[1752849160308,0.5647484,177.35,177.29,0.67]
[1752849160513,20.29083755,177.43,177.29,15.30501319]
[1752849160766,14.63501319,177.35,177.29,0.67]
[1752849161049,15.19976159,177.34,177.29,0.67]
[1752849161247,0.5647484,177.34,177.29,15.30501319]
[1752849161541,20.29306134,177.41,177.3,0.67]
[1752849161714,20.29306134,177.41,177.28,0.67]
[1752849161914,14.63501319,177.34,177.29,14.63501319]
[1752849162232,0.5647484,177.33,177.29,0.67]
[1752849162412,0.5647484,177.4,177.3,0.67]
[1752849162831,0.5647484,177.4,177.25,26.0]
[1752849163018,0.5647484,177.4,177.28,0.67]
[1752849163223,14.63501319,177.34,177.28,0.67]
[1752849163449,0.5647484,177.33,177.28,0.67]
[1752849163649,14.63501319,177.33,177.29,0.67]
[1752849163854,0.5647484,177.32,177.24,0.67]
[1752849164157,14.63501319,177.31,177.24,0.67]
[1752849164445,41.02,177.37,177.24,0.67]
[1752849164446,15.19976159,177.3,177.25,14.63501319]
[1752849164655,0.5647484,177.3,177.26,0.67]
[1752849164826,0.5647484,177.36,177.21,26.0]
[1752849165019,0.5647484,177.36,177.22,0.67]
[1752849165213,5.6385678,177.35,177.22,0.67]
[1752849165416,0.5647484,177.34,177.24,14.63501319]
[1752849165619,14.63501319,177.28,177.24,0.69]
[1752849165827,41.6047484,177.34,177.26,14.63501319]
[1752849166030,14.63501319,177.3,177.25,0.69]
[1752849166238,15.19976159,177.29,177.25,0.69]
[1752849166616,0.5647484,177.29,177.21,0.69]
[1752849166841,14.63501319,177.24,177.21,0.69]
[1752849167022,14.63501319,177.22,177.17,0.69]
[1752849167348,0.5647484,177.21,177.18,0.69]
[1752849167531,0.5647484,177.21,177.19,0.69]
[1752849167839,14.63501319,177.2,177.11,0.69]
[1752849168039,47.9576081,177.24,177.11,0.69]
[1752849168040,0.5647484,177.19,177.11,0.69]
[1752849168342,0.5647484,177.23,177.16,14.63501319]
[1752849168548,14.63501319,177.21,177.16,14.63501319]
[1752849168840,15.19976159,177.23,177.17,0.69]
[1752849169038,14.63501319,177.2,177.17,0.69]
[1752849169343,0.5647484,177.19,177.18,0.69]
[1752849169645,0.5647484,177.23,177.18,15.32501319]
[1752849169830,15.19976159,177.26,177.21,14.63501319]
[1752849170017,6.20617906,177.26,177.21,0.69]
[1752849170225,6.20617906,177.26,177.18,0.69]
[1752849170226,14.63501319,177.22,177.18,0.69]
[1752849170417,0.5647484,177.21,177.15,0.69]
[1752849170619,0.5647484,177.25,177.15,0.69]
[1752849170934,14.63501319,177.22,177.15,0.69]
[1752849171133,0.5647484,177.21,177.17,14.63501319]
[1752849171444,0.5647484,177.21,177.15,0.69]
[1752849171445,14.63501319,177.19,177.15,0.69]
[1752849171743,15.19976159,177.25,177.16,0.69]
[1752849171923,10.0,177.34,177.23,14.63501319]
[1752849171924,5.64040788,177.3,177.23,14.63501319]
[1752849172127,14.63501319,177.25,177.23,0.69]
[1752849172446,14.63501319,177.27,177.24,0.69]
[1752849172643,15.19976159,177.29,177.25,0.69]
[1752849172955,20.8396467,177.31,177.26,15.32501319]
[1752849173254,0.5647484,177.31,177.27,15.32501319]
[1752849173464,15.19976159,177.31,177.24,5.64200357]
[1752849173620,26.0,177.39,177.28,15.32501319]
[1752849173621,0.5647484,177.35,177.28,15.32501319]
[1752849173825,0.5647484,177.35,177.33,14.63501319]
[1752849174027,25.1318595,177.47,177.33,14.63501319]
[1752849174028,14.63501319,177.37,177.33,0.69]
[1752849174332,0.5647484,177.36,177.33,0.69]
[1752849174521,0.5647484,177.4,177.34,0.69]
[1752849174921,14.63501319,177.37,177.34,0.69]
[1752849175155,14.63501319,177.35,177.3,0.69]
[1752849175335,5.63729635,177.39,177.29,0.69]
[1752849175539,0.5647484,177.41,177.36,14.63501319]
[1752849175753,15.19976159,177.41,177.36,15.32501319]
[1752849175967,14.63501319,177.39,177.36,0.69]
[1752849176253,0.5647484,177.38,177.32,0.69]
[1752849176457,14.63501319,177.36,177.32,0.69]
[1752849176625,15.19976159,177.35,177.32,0.69]
[1752849176827,16.78468397,177.38,177.33,0.69]
[1752849177125,0.5647484,177.37,177.33,0.69]
[1752849177330,14.63501319,177.36,177.33,0.69]
[1752849177640,31.98444556,177.36,177.33,0.69]
[1752849178026,16.78468397,177.38,177.34,0.69]
[1752849178225,0.5647484,177.37,177.34,0.69]
[1752849178441,0.5647484,177.37,177.35,0.69]
[1752849178643,14.63501319,177.36,177.31,0.69]
[1752849178843,15.19976159,177.35,177.31,0.69]
[1752849179050,16.78468397,177.34,177.2,14.10830276]
[1752849179246,0.5647484,177.33,177.27,0.69]
[1752849179447,14.63501319,177.31,177.27,0.69]
[1752849179642,14.63501319,177.31,177.23,26.0]
[1752849179643,14.63501319,177.31,177.23,31.64234999]
[1752849179844,0.5647484,177.31,177.28,0.69]
[1752849180045,14.63501319,177.32,177.29,0.69]
[1752849180252,6.20406981,177.33,177.29,0.69]
[1752849180556,20.83896582,177.33,177.3,0.69]
[1752849180727,15.19976159,177.33,177.3,0.69]
[1752849180928,14.63501319,177.31,177.26,0.69]
[1752849181226,0.5647484,177.31,177.26,15.32501319]
[1752849181562,0.5647484,177.31,177.19,14.63501319]
[1752849181563,16.78468397,177.26,177.19,0.69]
[1752849181729,0.5647484,177.25,177.19,0.69]
[1752849182061,14.63501319,177.26,177.21,14.63501319]
[1752849182224,0.5647484,177.33,177.25,14.63501319]
[1752849182428,16.78468397,177.32,177.28,14.63501319]
[1752849182644,31.41969716,177.3,177.26,0.69]
[1752849182844,0.5647484,177.29,177.25,14.63501319]
[1752849183040,31.41969716,177.26,177.21,0.69]
[1752849183242,31.41969716,177.26,177.17,7.8689]
[1752849183243,0.5647484,177.25,177.17,7.8689]
[1752849183452,5.6423856,177.23,177.18,14.63501319]
[1752849183661,0.5647484,177.22,177.14,0.72]
[1752849183836,16.78468397,177.21,177.15,0.69]
[1752849184043,0.5647484,177.22,177.15,0.69]
[1752849184443,0.5647484,177.26,177.21,14.63501319]
[1752849184754,10.0,177.37,177.25,14.63501319]
[1752849184755,16.78468397,177.31,177.25,14.63501319]
[1752849184943,15.19976159,177.3,177.25,14.63501319]
[1752849185263,15.19976159,177.3,177.24,14.63501319]
[1752849185264,16.78468397,177.28,177.24,14.63501319]
[1752849185446,0.5647484,177.27,177.23,15.32501319]
[1752849185637,0.5647484,177.27,177.17,26.0]
[1752849185638,16.78468397,177.29,177.2,0.69]
[1752849185844,16.78468397,177.26,177.22,14.63501319]
[1752849186040,17.34943237,177.29,177.25,14.63501319]
[1752849186276,16.78468397,177.28,177.25,0.69]
[1752849186441,16.78468397,177.26,177.22,0.69]
[1752849186765,16.78468397,177.24,177.19,15.32501319]
[1752849186948,0.5647484,177.29,177.22,14.63501319]
[1752849187146,17.34943237,177.29,177.25,14.63501319]
[1752849187465,5.64111242,177.27,177.22,0.69]
[1752849187659,6.20586082,177.27,177.23,15.32501319]
[1752849187855,6.20586082,177.27,177.24,14.63501319]
[1752849188060,0.5647484,177.28,177.26,14.63501319]
[1752849188368,0.5647484,177.32,177.27,15.32501319]
[1752849188540,6.20299828,177.36,177.31,14.63501319]
[1752849188746,0.5647484,177.36,177.35,14.63501319]
[1752849188948,0.5647484,177.38,177.35,0.69]
[1752849189356,0.5647484,177.38,177.31,0.69]
[1752849189664,0.5647484,177.38,177.37,14.63501319]
[1752849189864,0.6247484,177.4,177.37,15.32501319]
[1752849190070,0.06,177.4,177.39,14.63501319]
[1752849190266,0.06,177.4,177.39,15.32501319]
[1752849190474,0.06,177.4,177.39,0.69]
[1752849190656,0.06,177.4,177.39,15.32501319]
[1752849191668,16.84468397,177.4,177.23,23.05]
[1752849191872,0.5647484,177.39,177.35,15.32501319]
[1752849192265,0.5647484,177.39,177.36,0.69]
[1752849192477,0.06,177.4,177.38,14.63501319]
[1752849192772,0.06,177.4,177.37,0.69]
[1752849192965,0.06,177.4,177.39,14.63501319]
[1752849193469,0.06,177.4,177.39,15.32501319]
[1752849194047,0.06,177.4,177.39,0.69]
[1752849194251,0.06,177.4,177.36,0.69]
[1752849194608,0.06,177.4,177.39,14.63501319]
[1752849194748,0.06,177.4,177.39,0.69]
[1752849195057,0.06,177.4,177.39,15.32501319]
[1752849195246,0.06,177.4,177.36,0.69]
[1752849195447,16.78468397,177.39,177.38,14.63501319]
[1752849195671,0.6247484,177.4,177.38,14.63501319]
[1752849195843,0.06,177.4,177.39,0.65]
[1752849196043,0.06,177.4,177.39,15.28501319]
[1752849196882,0.1,177.44,177.39,0.65]
[1752849197178,0.1,177.44,177.43,14.63501319]
[1752849197353,0.1,177.44,177.43,15.28501319]
[1752849197555,24.75911654,177.48,177.43,15.28501319]
[1752849197775,24.75911654,177.48,177.47,14.63501319]
[1752849198278,54.45816319,177.58,177.47,15.28501319]
[1752849198488,54.45816319,177.58,177.45,14.63501319]
[1752849198489,19.71053668,177.57,177.53,14.63501319]
[1752849198665,5.63158191,177.57,177.53,14.63501319]
[1752849199175,70.53030021,177.58,177.56,14.63501319]
[1752849199372,70.53030021,177.58,177.54,0.65]
[1752849199581,70.53030021,177.58,177.57,14.63501319]
[1752849199782,70.53030021,177.58,177.51,0.65]
[1752849199972,70.53030021,177.58,177.55,14.63501319]
[1752849200292,70.53030021,177.58,177.51,0.65]
[1752849200293,16.78468397,177.57,177.51,0.65]
[1752849200467,16.78468397,177.57,177.55,14.63501319]
[1752849200671,70.53030021,177.58,177.56,14.63501319]
[1752849201168,70.53025087,177.58,177.56,14.63501319]
[1752849201388,31.57969716,177.57,177.5,14.63501319]